bitfinex/quotes_BTCUSD_20251213
["timestamp","ask_amount","ask_price","bid_price","bid_amount"]
[1765641525590,9e-07,90164.0,90163.0,0.14537984]
[1765641538291,9e-07,90164.0,90163.0,0.0854594]
[1765641541933,9e-07,90164.0,90163.0,0.1961594]
[1765641542153,9e-07,90164.0,90163.0,0.29823782]
[1765641542396,9e-07,90164.0,90163.0,0.0854594]
[1765641542559,9e-07,90164.0,90163.0,0.21834144]
[1765641543324,9e-07,90164.0,90163.0,0.21634144]
[1765641543663,9e-07,90164.0,90163.0,0.22034144]
[1765641544110,9e-07,90164.0,90163.0,0.29814532]
[1765641544311,9e-07,90164.0,90163.0,0.1981594]
[1765641544510,9e-07,90164.0,90163.0,0.22034144]
[1765641544962,9e-07,90164.0,90163.0,0.21834144]
[1765641545135,9e-07,90164.0,90163.0,0.22134144]
[1765641545365,9e-07,90164.0,90163.0,0.30111116]
[1765641545566,9e-07,90164.0,90163.0,0.27892912]
[1765641546838,9e-07,90164.0,90163.0,0.28892912]
[1765641547200,9e-07,90164.0,90163.0,0.2091594]
[1765641547374,9e-07,90164.0,90163.0,0.23134144]
[1765641547744,9e-07,90164.0,90163.0,0.32498192]
[1765641547951,9e-07,90164.0,90163.0,0.0984594]
[1765641548834,9e-07,90164.0,90163.0,0.0954594]
[1765641549233,9e-07,90164.0,90163.0,0.0924594]
[1765641549636,9e-07,90164.0,90163.0,0.0934594]
[1765641552646,9e-07,90164.0,90163.0,0.0759794]
[1765641560344,9e-07,90164.0,90163.0,0.29779988]
[1765641563860,9e-07,90164.0,90163.0,0.0759794]
[1765641564195,9e-07,90164.0,90163.0,0.29779988]
[1765641564976,9e-07,90164.0,90163.0,0.28670935]
[1765641573285,9e-07,90164.0,90163.0,0.06488887]
[1765641576312,9e-07,90164.0,90163.0,0.12470394]
[1765641577303,9e-07,90164.0,90163.0,0.06488887]
[1765641583122,9e-07,90164.0,90163.0,0.12481059]
[1765641584239,9e-07,90164.0,90163.0,0.34663107]
[1765641586343,9e-07,90164.0,90163.0,0.28670935]
[1765641593949,9e-07,90164.0,90163.0,0.06488887]
[1765641594968,0.22181892,90164.0,90163.0,0.06488887]
[1765641597541,9e-07,90164.0,90163.0,0.06488887]
[1765641601613,9e-07,90164.0,90163.0,0.0238]
[1765641601821,9e-07,90164.0,90163.0,0.012]
[1765641602789,0.0035809,90164.0,90163.0,0.012]
[1765641602996,9e-07,90164.0,90163.0,0.05114]
[1765641603206,9e-07,90164.0,90163.0,0.16345287]
[1765641603608,9e-07,90164.0,90163.0,0.38527335]
[1765641612904,9e-07,90164.0,90163.0,0.33444277]
[1765641613079,9e-07,90164.0,90163.0,0.02863287]
[1765641613458,9e-07,90164.0,90163.0,0.07293491]
[1765641613663,0.06096021,90188.0,90185.0,0.01108831]
[1765641613868,0.04987227,90188.0,90187.0,0.02655]
[1765641614569,0.04987227,90188.0,90187.0,0.05067]
[1765641614961,0.04991503,90188.0,90187.0,0.05067]
[1765641616288,0.05091503,90188.0,90187.0,0.05067]
[1765641623726,0.34161503,90188.0,90187.0,0.05067]
[1765641623934,0.05091503,90188.0,90187.0,0.05067]
[1765641626029,0.05091503,90188.0,90187.0,0.02655]
[1765641626235,0.05091503,90188.0,90177.0,0.0110893]
[1765641626236,0.01108905,90179.0,90176.0,0.01153]
[1765641626411,0.01108905,90179.0,90178.0,0.01637]
[1765641626849,0.01108905,90179.0,90178.0,0.0406]
[1765641627680,0.30178868,90182.0,90178.0,0.0406]
[1765641627889,0.30178868,90182.0,90178.0,0.01637]
[1765641628707,0.30178868,90182.0,90178.0,0.0406]
[1765641629122,0.30178868,90182.0,90178.0,0.01637]
[1765641629325,0.30178868,90182.0,90178.0,0.01737]
[1765641629524,0.30178868,90182.0,90178.0,0.0416]
[1765641629930,0.30178868,90182.0,90178.0,0.05168917]
[1765641630351,0.30178868,90182.0,90178.0,0.02745917]
[1765641630583,0.32840628,90183.0,90181.0,0.02798]
[1765641630755,0.32840628,90183.0,90182.0,0.01556]
[1765641630961,0.32840628,90183.0,90182.0,0.03961]
[1765641632747,0.03770628,90183.0,90182.0,0.03961]
[1765641633481,0.32840628,90183.0,90181.0,0.01242]
[1765641633685,0.01108893,90180.0,90177.0,0.0110893]
[1765641633858,0.01108905,90179.0,90176.0,0.03558]
[1765641634095,0.23286979,90180.0,90176.0,0.02261942]
[1765641634506,0.01108893,90180.0,90177.0,0.02405]
[1765641635723,0.01108893,90180.0,90177.0,0.0351393]
[1765641635946,0.01108893,90180.0,90179.0,0.01556]
[1765641637215,0.01108893,90180.0,90179.0,0.01656]
[1765641637368,0.01108868,90182.0,90179.0,0.04061]
[1765641637570,0.01108868,90182.0,90181.0,0.02798]
[1765641638575,0.01108868,90182.0,90181.0,0.01242]
[1765641643044,0.01108868,90182.0,90181.0,0.03647]
[1765641644394,0.2907,90182.0,90181.0,0.03647]
[1765641646058,0.2907,90182.0,90181.0,0.2738062]
[1765641649504,0.03770628,90183.0,90181.0,0.2738062]
[1765641649817,0.03770628,90183.0,90182.0,0.03961]
[1765641650318,0.03770628,90183.0,90182.0,0.04122287]
[1765641651474,0.03770628,90183.0,90182.0,0.15192287]
[1765641652729,0.03770628,90183.0,90182.0,0.05870287]
[1765641652932,0.03770628,90183.0,90182.0,0.16940287]
[1765641654950,0.03770628,90183.0,90182.0,0.20270465]
[1765641657486,0.03770628,90183.0,90182.0,0.09200465]
[1765641657691,0.03770628,90183.0,90182.0,0.26256775]
[1765641657893,0.03770628,90183.0,90182.0,0.20270465]
[1765641658332,0.03770628,90183.0,90182.0,0.22588202]
[1765641658535,4.276e-05,90188.0,90182.0,0.22588202]
[1765641658536,4.276e-05,90188.0,90187.0,0.22176145]
[1765641658710,4.276e-05,90188.0,90187.0,0.41082271]
[1765641658913,4.276e-05,90188.0,90187.0,0.43513271]
[1765641659139,4.276e-05,90188.0,90187.0,0.46842662]
[1765641660058,4.276e-05,90188.0,90187.0,0.47142662]
[1765641660553,4.276e-05,90188.0,90187.0,0.46842662]
[1765641660774,4.276e-05,90188.0,90187.0,0.76112662]
[1765641661782,4.276e-05,90188.0,90187.0,0.76312662]
[1765641663841,4.276e-05,90188.0,90187.0,0.42240823]
[1765641664048,4.276e-05,90188.0,90187.0,0.48198968]
[1765641664227,4.276e-05,90188.0,90187.0,0.49946968]
[1765641665252,4.276e-05,90188.0,90187.0,0.43988823]
[1765641668346,4.276e-05,90188.0,90187.0,0.49944371]
[1765641670585,4.276e-05,90188.0,90187.0,0.43988823]
[1765641678362,4.276e-05,90188.0,90187.0,0.32918823]
[1765641678565,4.276e-05,90188.0,90187.0,0.43988823]
[1765641678783,4.276e-05,90188.0,90187.0,0.32918823]
[1765641678960,4.276e-05,90188.0,90187.0,0.43988823]
[1765641679346,4.276e-05,90188.0,90187.0,0.32918823]
[1765641680581,4.276e-05,90188.0,90187.0,0.43988823]
[1765641683652,4.276e-05,90188.0,90187.0,0.48990662]
[1765641684090,0.00104687,90188.0,90187.0,0.48990662]
[1765641685081,0.00104687,90188.0,90187.0,0.47242662]
[1765641685241,0.00104687,90188.0,90187.0,0.43988823]
[1765641685439,0.00104687,90188.0,90187.0,0.42240823]
[1765641685666,0.00104687,90188.0,90187.0,0.32918823]
[1765641686406,0.00104687,90188.0,90187.0,0.43988823]
[1765641686785,0.00104687,90188.0,90187.0,0.43788823]
[1765641687172,0.00104687,90188.0,90187.0,0.43588823]
[1765641688051,0.00104687,90188.0,90187.0,0.43888823]
[1765641688604,0.00104687,90188.0,90187.0,0.44188823]
[1765641692333,0.00104687,90188.0,90187.0,0.52152938]
[1765641693508,0.00104687,90188.0,90187.0,0.44188823]
[1765641722070,0.00104687,90188.0,90187.0,0.31370823]
[1765641722273,0.22280586,90188.0,90187.0,0.006]
[1765641722456,0.22638586,90188.0,90187.0,0.006]
[1765641722639,0.22280586,90188.0,90187.0,0.006]
[1765641722960,0.00104687,90188.0,90187.0,0.26803145]
[1765641723169,0.00104687,90188.0,90187.0,0.04627]
[1765641723582,0.00104687,90188.0,90187.0,0.26503145]
[1765641724150,0.00104687,90188.0,90187.0,0.26803145]
[1765641724349,0.00104687,90188.0,90187.0,0.26503145]
[1765641724758,0.00104687,90188.0,90187.0,0.26803145]
[1765641729179,0.00104687,90188.0,90187.0,0.04627]
[1765641729402,0.00104687,90188.0,90187.0,0.006]
[1765641729604,0.00820687,90188.0,90187.0,0.006]
[1765641729804,0.00462687,90188.0,90187.0,0.006]
[1765641730459,0.00104687,90188.0,90187.0,0.006]
[1765641732350,0.22280586,90188.0,90187.0,0.006]
[1765641732549,0.00104687,90188.0,90187.0,0.006]
[1765641739479,0.00104687,90188.0,90187.0,0.0576]
[1765641739685,0.00104687,90188.0,90187.0,0.1683]
[1765641742588,0.00104687,90188.0,90187.0,0.16991287]
[1765641746275,0.00104687,90188.0,90187.0,0.19208901]
[1765641746456,0.00104687,90188.0,90187.0,0.22538651]
[1765641747666,0.00104687,90188.0,90187.0,0.22238651]
[1765641747866,0.00104687,90188.0,90187.0,0.22438651]
[1765641748102,0.00104687,90188.0,90187.0,0.22138651]
[1765641748449,0.00104687,90188.0,90187.0,0.22038651]
[1765641748650,0.00104687,90188.0,90187.0,0.22238651]
[1765641749060,0.00104687,90188.0,90187.0,0.22438651]
[1765641749475,0.00104687,90188.0,90187.0,0.28428866]
[1765641749757,0.00104687,90188.0,90187.0,0.26211252]
[1765641751447,0.00104687,90188.0,90187.0,0.20221037]
[1765641751651,0.00104687,90188.0,90187.0,0.22438651]
[1765641754583,0.00104687,90188.0,90187.0,0.20221037]
[1765641754935,0.00104687,90188.0,90187.0,0.22438651]
[1765641761691,0.00104687,90188.0,90187.0,0.11368651]
[1765641761910,0.00104687,90188.0,90187.0,0.20221037]
[1765641762707,0.00104687,90188.0,90187.0,0.22438651]
[1765641770939,0.00104687,90188.0,90187.0,0.20221037]
[1765641771144,0.00104687,90188.0,90187.0,0.22438651]
[1765641771587,0.00104687,90188.0,90187.0,0.11368651]
[1765641771802,0.00104687,90188.0,90187.0,0.22438651]
[1765641773509,0.00104687,90188.0,90187.0,0.30424662]
[1765641773667,0.00104687,90188.0,90187.0,0.28207048]
[1765641775371,0.00104687,90188.0,90187.0,0.20221037]
[1765641775513,0.00104687,90188.0,90187.0,0.22438651]
[1765641781260,0.00104687,90188.0,90187.0,0.21770839]
[1765641782082,0.00104687,90188.0,90187.0,0.22438651]
[1765641782286,0.00104687,90188.0,90187.0,0.20221037]
[1765641782514,0.00104687,90188.0,90187.0,0.22438651]
[1765641788729,0.00104687,90188.0,90187.0,0.5651049]
[1765641788906,0.00011445,90188.0,90187.0,0.54292876]
[1765641789115,0.00011445,90188.0,90187.0,0.68262409]
[1765641789513,0.00011445,90188.0,90187.0,0.54292876]
[1765641789894,0.00011445,90188.0,90187.0,0.53792876]
[1765641790246,0.00011445,90188.0,90187.0,0.54192876]
[1765641790535,0.00011445,90188.0,90187.0,0.53992876]
[1765641790897,0.00011445,90188.0,90187.0,0.54192876]
[1765641791508,0.00011445,90188.0,90187.0,0.54592876]
[1765641791711,0.00011445,90188.0,90187.0,0.54192876]
[1765641791910,0.00011445,90188.0,90187.0,0.54692876]
[1765641798875,1.225e-05,90188.0,90187.0,0.54692876]
[1765641801028,1.225e-05,90188.0,90187.0,1.66372876]
[1765641801226,0.01107996,90253.0,90248.0,0.22161155]
[1765641801429,0.05031517,90250.0,90249.0,0.0268]
[1765641801651,0.05031517,90250.0,90249.0,0.05148]
[1765641802270,0.0004429,90250.0,90249.0,0.16379287]
[1765641803516,0.0054429,90250.0,90249.0,0.16379287]
[1765641803863,0.0004429,90250.0,90249.0,0.16379287]
[1765641804046,0.0014429,90250.0,90249.0,0.16379287]
[1765641804467,0.0004429,90250.0,90249.0,0.16379287]
[1765641805447,0.0004429,90250.0,90249.0,0.19707098]
[1765641806311,0.0004429,90250.0,90249.0,0.16379287]
[1765641806874,0.0004429,90250.0,90249.0,0.05309287]
[1765641807078,0.00229463,90250.0,90249.0,0.05309287]
[1765641807280,0.22161633,90247.0,90245.0,0.01134]
[1765641807503,0.04987227,90246.0,90245.0,0.01134]
[1765641807725,0.06095309,90246.0,90240.0,0.01134]
[1765641807925,0.01108106,90244.0,90241.0,0.01108143]
[1765641808168,0.01108094,90245.0,90242.0,0.01108131]
[1765641808335,0.04987227,90246.0,90243.0,0.255314]
[1765641808741,0.04987227,90246.0,90244.0,0.02261]
[1765641809726,0.05087227,90246.0,90244.0,0.02261]
[1765641809962,0.05087227,90246.0,90245.0,0.001]
[1765641810168,0.04987227,90246.0,90245.0,0.001]
[1765641810406,0.05087227,90246.0,90245.0,0.03581]
[1765641810527,0.05087227,90246.0,90245.0,0.03481]
[1765641810726,0.04987227,90246.0,90245.0,0.03481]
[1765641810978,0.05087227,90246.0,90245.0,0.0122]
[1765641811715,0.27248874,90246.0,90245.0,0.04995]
[1765641811897,0.05087227,90246.0,90245.0,0.04995]
[1765641812532,0.27248874,90246.0,90245.0,0.04995]
[1765641812691,0.27248874,90246.0,90245.0,0.02734]
[1765641813094,0.05260461,90246.0,90245.0,0.02734]
[1765641813295,0.05260461,90246.0,90245.0,0.04995]
[1765641817018,0.00273234,90246.0,90245.0,0.16226287]
[1765641818423,0.00273234,90246.0,90245.0,0.17334209]
[1765641819726,0.00173234,90246.0,90245.0,0.17334209]
[1765641820176,0.00273234,90246.0,90245.0,0.17334209]
[1765641820473,0.00173234,90246.0,90245.0,0.17334209]
[1765641820679,0.00273234,90246.0,90245.0,0.17334209]
[1765641826387,0.00273234,90246.0,90245.0,0.18334209]
[1765641827742,0.00273234,90246.0,90245.0,0.07264209]
[1765641829376,0.00273234,90246.0,90245.0,0.18334209]
[1765641829876,0.00273234,90246.0,90245.0,0.07264209]
[1765641832027,0.00273234,90246.0,90245.0,0.18334209]
[1765641832475,0.00273234,90246.0,90245.0,0.07264209]
[1765641833237,0.00273234,90246.0,90245.0,0.13234448]
[1765641833826,0.00273234,90246.0,90245.0,0.07264209]
[1765641836395,0.00273234,90246.0,90245.0,0.13234448]
[1765641841891,0.00273234,90246.0,90245.0,0.07264209]
[1765641846823,0.00273234,90246.0,90245.0,0.18334209]
[1765641855300,0.00273234,90246.0,90245.0,0.07264209]
[1765641855501,0.00273234,90246.0,90245.0,0.20550398]
[1765641855502,2.34e-06,90246.0,90245.0,0.20550398]
[1765641856638,2.34e-06,90246.0,90245.0,0.20082209]
[1765641857215,2.34e-06,90246.0,90245.0,0.22298398]
[1765641859167,2.34e-06,90246.0,90245.0,0.56370237]
[1765641859390,2.34e-06,90246.0,90245.0,1.64104447]
[1765641859594,0.0004429,90250.0,90249.0,0.45141839]
[1765641859797,0.0004429,90250.0,90249.0,0.46934126]
[1765641859996,0.0004429,90250.0,90249.0,0.49366126]
[1765641860226,0.0004429,90250.0,90249.0,0.71527036]
[1765641860439,0.0004429,90250.0,90249.0,0.81465566]
[1765641860776,0.0004429,90250.0,90249.0,0.81565566]
[1765641861388,0.0004429,90250.0,90249.0,0.81665566]
[1765641861555,0.0004429,90250.0,90249.0,0.71727036]
[1765641863323,0.0004429,90250.0,90249.0,0.73475036]
[1765641864226,0.0004429,90250.0,90249.0,0.73918603]
[1765641871036,0.0004,90270.0,90249.0,0.73918603]
[1765641871037,0.0004,90270.0,90269.0,0.67297839]
[1765641871239,0.0004,90270.0,90269.0,0.71939126]
[1765641871486,0.0004,90270.0,90269.0,0.74198126]
[1765641871622,0.00087758,90270.0,90269.0,0.74198126]
[1765641871823,0.00087758,90270.0,90269.0,0.82572474]
[1765641872246,0.00087758,90270.0,90269.0,0.74641604]
[1765641872690,0.00087758,90270.0,90269.0,0.82572474]
[1765641873320,0.00087758,90270.0,90269.0,0.74641604]
[1765641873670,0.00087758,90270.0,90269.0,0.82872474]
[1765641874038,0.0004,90280.0,90279.0,0.33223546]
[1765641874252,0.0004,90280.0,90279.0,0.37214833]
[1765641874682,0.0004,90280.0,90279.0,0.73034672]
[1765641874962,0.0004,90280.0,90279.0,0.73478087]
[1765641875640,0.0004,90280.0,90279.0,0.71730087]
[1765641875850,0.0004,90280.0,90279.0,0.73478087]
[1765641876262,0.0004,90280.0,90279.0,0.73578087]
[1765641876608,0.0004,90280.0,90279.0,0.73778087]
[1765641877163,0.0004,90280.0,90279.0,0.74778087]
[1765641877367,0.0004,90280.0,90279.0,0.74578087]
[1765641877567,1e-08,90280.0,90279.0,0.74478087]
[1765641877803,1e-08,90280.0,90279.0,1.74678087]
[1765641878024,1e-08,90280.0,90279.0,1.74778087]
[1765641879646,0.00029844,90280.0,90279.0,1.73030087]
[1765641879832,0.00029844,90280.0,90279.0,1.08778087]
[1765641880006,0.00029844,90280.0,90279.0,0.74778087]
[1765641880831,0.00029844,90280.0,90279.0,1.74778087]
[1765641882381,0.00029844,90280.0,90279.0,0.73030087]
[1765641882665,0.00029844,90280.0,90279.0,0.74778087]
[1765641884241,0.00029844,90280.0,90279.0,0.82683042]
[1765641885353,0.00029844,90280.0,90279.0,0.74778087]
[1765641887242,0.00029844,90280.0,90279.0,0.73030087]
[1765641887477,0.00029844,90280.0,90279.0,0.74778087]
[1765641888027,0.00029844,90280.0,90279.0,0.73030087]
[1765641888226,0.00029844,90280.0,90279.0,0.74778087]
[1765641888424,0.00029844,90280.0,90279.0,0.73030087]
[1765641888625,0.00029844,90280.0,90279.0,0.74778087]
[1765641889318,0.00029844,90280.0,90279.0,0.82693094]
[1765641891215,0.00068504,90280.0,90279.0,0.82693094]
[1765641892289,0.00068504,90280.0,90279.0,0.74778087]
[1765641894686,1e-08,90280.0,90279.0,0.74778087]
[1765641897286,1e-08,90280.0,90279.0,0.84716617]
[1765641898168,1e-08,90280.0,90279.0,1.84689741]
[1765641898375,1e-08,90280.0,90279.0,1.74778087]
[1765641898580,0.0004,90290.0,90289.0,0.62291092]
[1765641898783,0.00051593,90290.0,90289.0,0.65853379]
[1765641898983,0.00051593,90290.0,90289.0,0.68305379]
[1765641899213,0.00051593,90290.0,90289.0,0.68748778]
[1765641900676,0.0004,90300.0,90299.0,0.67290478]
[1765641900873,0.0004,90310.0,90309.0,0.38218025]
[1765641901191,0.03700215,90329.0,90309.0,0.38218025]
[1765641901192,0.03700215,90329.0,90319.0,0.33213734]
[1765641901379,0.0004,90330.0,90328.0,0.22141528]
[1765641901536,0.01106819,90349.0,90339.0,0.1107]
[1765641901720,0.00051593,90340.0,90339.0,0.24984832]
[1765641901930,0.00051593,90340.0,90339.0,0.29184832]
[1765641902138,0.0403882,90346.0,90344.0,0.22137607]
[1765641902359,0.0403882,90346.0,90345.0,0.01748]
[1765641903338,0.22138121,90342.0,90339.0,0.01193]
[1765641903468,0.22139567,90336.0,90335.0,0.01193]
[1765641903683,0.22139322,90337.0,90335.0,0.01748]
[1765641903882,0.23247378,90333.0,90330.0,0.03324687]
[1765641904135,0.23247378,90333.0,90330.0,0.00011593]
[1765641904136,0.2712802,90331.0,90330.0,0.00011593]
[1765641904317,0.2787902,90331.0,90330.0,0.01759593]
[1765641904517,0.2863002,90331.0,90330.0,0.01759593]
[1765641904855,0.2787902,90331.0,90330.0,0.01759593]
[1765641905064,0.2863002,90331.0,90330.0,0.00011593]
[1765641905182,0.28782126,90331.0,90330.0,0.00011593]
[1765641905797,0.28031126,90331.0,90330.0,0.00011593]
[1765641906173,0.39852126,90331.0,90330.0,0.00011593]
[1765641906533,0.28782126,90331.0,90330.0,0.00011593]
[1765641906963,0.39852126,90331.0,90330.0,0.00011593]
[1765641907634,0.39852126,90331.0,90305.0,0.28098167]
[1765641907635,0.22146836,90307.0,90305.0,0.03967435]
[1765641907992,0.22146836,90307.0,90290.0,0.07935799]
[1765641907993,0.22148397,90300.0,90295.0,0.01107481]
[1765641908160,0.22148397,90300.0,90289.0,0.28102224]
[1765641908161,0.22149865,90294.0,90289.0,0.01107554]
[1765641908408,0.01858481,90295.0,90287.0,0.01748]
[1765641908409,0.01107542,90290.0,90287.0,0.01748]
[1765641908612,0.01107542,90290.0,90282.0,0.01193]
[1765641908613,0.0110753,90291.0,90283.0,0.03967435]
[1765641908820,0.01107603,90285.0,90284.0,0.01748]
[1765641909010,0.23259934,90284.0,90280.0,0.01748]
[1765641909499,0.22153017,90282.0,90280.0,0.01748]
[1765641909704,0.23260657,90282.0,90279.0,0.01]
[1765641909906,0.0110764,90282.0,90279.0,0.01]
[1765641910132,0.23260508,90282.0,90279.0,0.01]
[1765641910481,0.23260508,90282.0,90280.0,0.01]
[1765641911101,0.30572,90281.0,90280.0,0.01]
[1765641911302,0.30572,90281.0,90280.0,0.00814657]
[1765641911583,0.30572,90281.0,90279.0,0.01]
[1765641911584,0.27155139,90280.0,90279.0,0.01]
[1765641911780,0.27155139,90280.0,90232.0,0.01108254]
[1765641911781,0.01108241,90233.0,90229.0,0.01752]
[1765641911954,0.01108266,90231.0,90227.0,0.01108315]
[1765641912155,0.01108254,90232.0,90226.0,0.00207825]
[1765641912311,0.01108254,90232.0,90226.0,0.01316152]
[1765641912519,0.04987227,90227.0,90226.0,0.00207825]
[1765641912698,0.01108131,90242.0,90237.0,0.01108192]
[1765641912904,0.57464315,90250.0,90238.0,0.23271791]
[1765641912905,0.01108094,90245.0,90238.0,0.23271791]
[1765641913117,0.23270099,90245.0,90238.0,0.23271791]
[1765641913336,0.01108156,90240.0,90237.0,0.0003866]
[1765641913544,0.0609537,90241.0,90237.0,0.01146852]
[1765641913745,0.04987227,90241.0,90238.0,0.0110818]
[1765641914393,0.01108156,90240.0,90237.0,0.0003866]
[1765641915038,0.01108156,90240.0,90237.0,0.0103866]
[1765641915039,0.29115,90238.0,90237.0,0.0103866]
[1765641915250,0.45186839,90238.0,90237.0,0.0103866]
[1765641915454,0.45231839,90238.0,90237.0,0.0103866]
[1765641917090,0.45331839,90238.0,90237.0,0.0103866]
[1765641920607,0.47083839,90238.0,90237.0,0.0103866]
[1765641923370,0.45331839,90238.0,90237.0,0.0103866]
[1765641923577,0.47083839,90238.0,90237.0,0.0103866]
[1765641926601,0.55432,90238.0,90237.0,0.0103866]
[1765641926803,0.66502,90238.0,90237.0,0.0103866]
[1765641928292,0.71503839,90238.0,90237.0,0.0103866]
[1765641932147,0.73166275,90238.0,90237.0,0.0103866]
[1765641933441,0.74191409,90238.0,90237.0,0.0103866]
[1765641936146,0.72439409,90238.0,90237.0,0.0103866]
[1765641936348,0.74191409,90238.0,90237.0,0.0103866]
[1765641939425,0.74191409,90238.0,90237.0,0.00317641]
[1765641940224,0.72439409,90238.0,90237.0,0.00317641]
[1765641940426,0.51236313,90227.0,90226.0,0.00207825]
[1765641940706,0.65128447,90227.0,90226.0,0.00011593]
[1765641940847,0.65173447,90227.0,90226.0,0.00011593]
[1765641942565,0.65173447,90227.0,90226.0,0.00111593]
[1765641943323,0.65173447,90227.0,90226.0,0.00211593]
[1765641945138,0.65173447,90227.0,90226.0,0.00111593]
[1765641945692,0.65173447,90227.0,90226.0,0.00011593]
[1765641946314,0.65173447,90227.0,90226.0,0.00111593]
[1765641946523,0.65173447,90227.0,90226.0,0.00211593]
[1765641947676,0.65173447,90227.0,90226.0,0.00111593]
[1765641948002,0.63421447,90227.0,90226.0,0.00211593]
[1765641948555,0.6343564,90227.0,90226.0,0.00211593]
[1765641949836,0.5232064,90227.0,90226.0,0.00211593]
[1765641950038,0.5227564,90227.0,90226.0,0.00211593]
[1765641950519,0.5236564,90227.0,90226.0,0.00211593]
[1765641950939,0.57352867,90227.0,90226.0,0.00211593]
[1765641955177,0.57307867,90227.0,90226.0,0.00211593]
[1765641957617,0.35096554,90227.0,90226.0,0.00211593]
[1765641959277,0.35096554,90227.0,90226.0,0.0440388]
[1765641959278,0.01039327,90227.0,90226.0,0.0440388]
[1765641959487,0.06026554,90227.0,90226.0,0.0440388]
[1765641959769,0.06026554,90227.0,90226.0,0.26570439]
[1765641960168,0.06026554,90227.0,90226.0,0.0430388]
[1765641960487,0.06026554,90227.0,90226.0,0.26470439]
[1765641960651,0.06026554,90227.0,90226.0,0.26370439]
[1765641960853,0.06026554,90227.0,90226.0,0.0440388]
[1765641962441,0.04987227,90227.0,90226.0,0.0440388]
[1765641964828,0.04987227,90227.0,90226.0,0.0037288]
[1765641965862,0.2715354,90227.0,90226.0,0.0037288]
[1765641966885,0.04987227,90227.0,90226.0,0.0037288]
[1765641969529,0.04987227,90227.0,90226.0,0.0443088]
[1765641969712,0.04987227,90227.0,90226.0,0.0037288]
[1765641969713,0.2719854,90227.0,90226.0,0.0037288]
[1765641970632,0.2715354,90227.0,90226.0,0.0037288]
[1765641970807,0.04987227,90227.0,90226.0,0.0278588]
[1765641971247,0.04987227,90227.0,90226.0,0.0228588]
[1765641971559,0.04987227,90227.0,90224.0,0.02319352]
[1765641971761,0.04987227,90227.0,90224.0,0.02323642]
[1765641971950,0.06095542,90227.0,90224.0,0.02323642]
[1765641973423,0.06195542,90227.0,90224.0,0.0121529]
[1765641973603,0.28362098,90227.0,90224.0,0.0121529]
[1765641974017,0.221668,90226.0,90224.0,0.0121529]
[1765641975093,0.221668,90226.0,90224.0,0.04204402]
[1765641976018,0.06095542,90227.0,90224.0,0.04204402]
[1765641976441,0.001,90226.0,90224.0,0.04204402]
[1765641977833,0.001,90226.0,90225.0,0.02990852]
[1765641978724,0.22266559,90226.0,90225.0,0.02990852]
[1765641979129,0.22166559,90226.0,90225.0,0.02990852]
[1765641980486,0.22166559,90226.0,90225.0,0.03090852]
[1765641981266,0.22166559,90226.0,90225.0,0.001]
[1765641981699,0.04987227,90227.0,90225.0,0.001]
[1765641981995,0.04987227,90227.0,90226.0,0.02991983]
[1765641985895,0.04987227,90227.0,90226.0,0.04643983]
[1765641986163,0.04987227,90227.0,90226.0,0.07140983]
[1765641986283,0.04987227,90227.0,90226.0,0.04149]
[1765641987788,0.04987227,90227.0,90226.0,0.04249]
[1765641989235,0.01108205,90236.0,90226.0,0.04249]
[1765641989236,0.01108241,90233.0,90228.0,0.12178303]
[1765641989436,0.01108241,90233.0,90232.0,0.02993553]
[1765641989437,0.23273292,90233.0,90232.0,0.02993553]
[1765641989637,0.23273292,90233.0,90232.0,0.04645553]
[1765641989895,0.01108241,90233.0,90232.0,0.07142553]
[1765641990301,0.23272969,90234.0,90232.0,0.07142553]
[1765641990302,0.01108229,90234.0,90232.0,0.07142553]
[1765641990582,0.01108229,90234.0,90233.0,0.04149]
[1765641991711,0.30178192,90237.0,90233.0,0.04149]
[1765641991827,0.30178192,90237.0,90236.0,0.02792]
[1765641992029,0.2907,90237.0,90236.0,0.05785553]
[1765641992340,0.01108156,90240.0,90236.0,0.05785553]
[1765641992341,0.01108168,90239.0,90236.0,0.08282553]
[1765641992657,0.01108168,90239.0,90237.0,0.02497]
[1765641993053,0.2907,90238.0,90237.0,0.02497]
[1765641993642,0.2907,90238.0,90237.0,0.04149]
[1765641994248,0.01108168,90239.0,90237.0,0.04149]
[1765641994544,0.01108168,90239.0,90238.0,0.07142553]
[1765641995254,0.01108168,90239.0,90238.0,0.04149]
[1765641995460,0.002,90239.0,90238.0,0.04149]
[1765641995663,0.002,90239.0,90238.0,0.18212553]
[1765641995866,0.01108156,90240.0,90239.0,0.1107]
[1765641996101,0.01108156,90240.0,90239.0,0.15219]
[1765641996442,0.04987227,90241.0,90240.0,0.1107]
[1765641996743,0.04987227,90241.0,90240.0,0.15219]
[1765641998060,0.04987227,90241.0,90240.0,0.1854735]
[1765641998939,0.05087227,90241.0,90240.0,0.1854735]
[1765641999137,0.05087227,90241.0,90240.0,0.22538754]
[1765641999349,0.05087227,90241.0,90240.0,0.1854735]
[1765641999505,0.05087227,90241.0,90240.0,0.22538754]
[1765641999710,0.05287227,90241.0,90240.0,0.22538754]
[1765642000375,0.04987227,90241.0,90240.0,0.2029935]
[1765642001497,0.03704275,90251.0,90249.0,0.1107]
[1765642001701,0.03704275,90251.0,90250.0,0.02792]
[1765642001929,0.03704275,90251.0,90250.0,0.05289]
[1765642002879,0.03704275,90251.0,90249.0,0.03328039]
[1765642004726,0.03704275,90251.0,90250.0,0.22160664]
[1765642006117,0.03704275,90251.0,90250.0,0.26309664]
[1765642007923,0.03704275,90251.0,90250.0,0.37379664]
[1765642008536,0.03704275,90251.0,90250.0,0.42115708]
[1765642008866,0.03704275,90251.0,90250.0,0.39131664]
[1765642010001,0.03704275,90251.0,90250.0,0.39231664]
[1765642010408,0.03704275,90251.0,90250.0,0.43223068]
[1765642010830,0.04987227,90269.0,90266.0,0.01107836]
[1765642011030,0.04987227,90269.0,90268.0,0.02792]
[1765642011447,0.04987227,90269.0,90268.0,0.27445245]
[1765642012074,0.05025815,90269.0,90268.0,0.27445245]
[1765642012699,0.05125815,90269.0,90268.0,0.27445245]
[1765642012846,0.05325815,90269.0,90268.0,0.27445245]
[1765642015179,0.05325815,90269.0,90268.0,0.05289]
[1765642021070,0.00338588,90269.0,90268.0,0.05289]
[1765642021277,0.00338588,90269.0,90268.0,0.19685895]
[1765642021708,0.00138588,90269.0,90268.0,0.19685895]
[1765642022713,0.00138588,90269.0,90268.0,0.21437895]
[1765642023078,0.00038588,90269.0,90268.0,0.21437895]
[1765642023280,0.00038588,90269.0,90268.0,0.19785895]
[1765642023512,0.00038588,90269.0,90268.0,0.21537895]
[1765642026621,0.00038588,90269.0,90268.0,0.21637895]
[1765642030678,0.00038588,90269.0,90268.0,0.19885895]
[1765642030877,0.00038588,90269.0,90268.0,0.22935971]
[1765642031103,0.00038588,90269.0,90268.0,0.21637895]